bitfinex-derivatives/quotes_BTCF0:USTF0_20251220
["timestamp","ask_amount","ask_price","bid_price","bid_amount"]
[1766256233495,0.02836,88244.0,88230.0,0.22854144]
[1766256233698,0.02589083,88243.0,88230.0,0.22854144]
[1766256233994,0.02589083,88242.0,88230.0,0.22854144]
[1766256234197,0.02836,88244.0,88230.0,0.22854144]
[1766256234396,0.02589397,88243.0,88230.0,0.22854144]
[1766256234696,0.02589397,88242.0,88230.0,0.22854144]
[1766256234897,0.02836,88244.0,88230.0,0.22854144]
[1766256235195,0.02589416,88243.0,88230.0,0.22854144]
[1766256235397,0.02589416,88242.0,88230.0,0.22854144]
[1766256235601,0.02589416,88241.0,88230.0,0.22854144]
[1766256235801,0.02836,88244.0,88230.0,0.22854144]
[1766256236000,0.02580195,88243.0,88230.0,0.22854144]
[1766256236203,0.02580195,88242.0,88230.0,0.22854144]
[1766256236391,0.02580195,88241.0,88230.0,0.22854144]
[1766256236593,0.02836,88244.0,88230.0,0.22854144]
[1766256236792,0.02580481,88243.0,88230.0,0.22854144]
[1766256236993,0.02580481,88242.0,88230.0,0.22854144]
[1766256237194,0.02580481,88241.0,88230.0,0.22854144]
[1766256237505,0.02836,88244.0,88230.0,0.22854144]
[1766256237798,0.02580531,88243.0,88230.0,0.22854144]
[1766256238102,0.02580531,88242.0,88230.0,0.22854144]
[1766256238294,0.02580531,88241.0,88230.0,0.22854144]
[1766256238495,0.02836,88244.0,88230.0,0.22854144]
[1766256238697,0.02580587,88243.0,88230.0,0.22854144]
[1766256238898,0.02580587,88242.0,88230.0,0.22854144]
[1766256239197,0.02580587,88241.0,88230.0,0.22854144]
[1766256239396,0.02836,88244.0,88230.0,0.22854144]
[1766256239598,0.02580655,88243.0,88230.0,0.22854144]
[1766256239902,0.02580655,88242.0,88230.0,0.22854144]
[1766256240102,0.02836,88244.0,88230.0,0.22854144]
[1766256240103,0.02580655,88241.0,88230.0,0.22854144]
[1766256240296,0.02836,88244.0,88230.0,0.22854144]
[1766256240495,0.02580724,88243.0,88230.0,0.22854144]
[1766256240697,0.02580724,88242.0,88230.0,0.22854144]
[1766256240899,0.02580724,88241.0,88230.0,0.22854144]
[1766256241099,0.02836,88244.0,88230.0,0.22854144]
[1766256241302,0.02580723,88243.0,88230.0,0.22854144]
[1766256241506,0.02580723,88242.0,88229.0,0.02836]
[1766256241807,0.02580723,88241.0,88230.0,0.22854144]
[1766256241998,0.02836,88244.0,88230.0,0.22854144]
[1766256242198,0.02580821,88243.0,88230.0,0.22854144]
[1766256242407,0.02580821,88242.0,88230.0,0.22854144]
[1766256242611,0.02580821,88241.0,88230.0,0.22854144]
[1766256242907,0.02836,88244.0,88230.0,0.22854144]
[1766256243203,0.02580959,88243.0,88230.0,0.22854144]
[1766256243509,0.02580959,88242.0,88230.0,0.22854144]
[1766256243708,0.02580959,88241.0,88230.0,0.22854144]
[1766256244008,0.02836,88244.0,88230.0,0.22854144]
[1766256244201,0.02581141,88243.0,88230.0,0.22854144]
[1766256244401,0.02581141,88242.0,88230.0,0.22854144]
[1766256244601,0.02581141,88241.0,88230.0,0.22854144]
[1766256244909,0.02581141,88240.0,88230.0,0.22854144]
[1766256245104,0.02836,88244.0,88230.0,0.22854144]
[1766256245304,0.02581484,88243.0,88230.0,0.22854144]
[1766256245505,0.02581484,88242.0,88230.0,0.22854144]
[1766256245805,0.02581484,88241.0,88230.0,0.22854144]
[1766256246005,0.02581484,88240.0,88230.0,0.2285515]
[1766256246305,0.02836,88244.0,88230.0,0.2285515]
[1766256246501,0.02581618,88243.0,88230.0,0.2285515]
[1766256246701,0.02581618,88242.0,88230.0,0.2285515]
[1766256246905,0.02581618,88241.0,88230.0,0.2285515]
[1766256247106,0.02581618,88240.0,88230.0,0.2285515]
[1766256247300,0.02836,88244.0,88230.0,0.2285515]
[1766256247502,0.02581618,88243.0,88230.0,0.2285515]
[1766256247701,0.02581618,88242.0,88230.0,0.2285515]
[1766256247906,0.02581618,88242.0,88214.0,0.08164723]
[1766256247907,0.02581618,88241.0,88214.0,0.08164723]
[1766256248105,0.0113382,88237.0,88220.0,0.2285515]
[1766256248311,0.0113382,88237.0,88221.0,0.02528]
[1766256249211,0.0113382,88237.0,88227.0,0.2285515]
[1766256249404,0.0113382,88237.0,88227.0,0.2569115]
[1766256251011,0.0113382,88237.0,88227.0,0.02836]
[1766256255716,0.0113382,88237.0,88223.0,0.01496]
[1766256262226,0.02836,88244.0,88214.0,0.00016996]
[1766256262429,0.011339,88231.0,88215.0,0.00884]
[1766256273125,0.22859165,88230.0,88214.0,0.00016996]
[1766256273324,0.0056,88230.0,88214.0,0.00016996]
[1766256274232,0.0113393,88229.0,88214.0,0.00016996]
[1766256278841,0.0056,88230.0,88214.0,0.00016996]
[1766256286136,0.0113384,88235.0,88214.0,0.01151096]
[1766256286332,0.0113384,88235.0,88220.0,0.22860979]
[1766256286539,0.00352,88236.0,88220.0,0.22860979]
[1766256286739,0.02836,88236.0,88220.0,0.22860979]
[1766256288547,0.02836,88236.0,88216.0,0.0397008]
[1766256288740,0.02836,88236.0,88220.0,0.22860979]
[1766256296046,0.02836,88236.0,88221.0,0.02836]
[1766256299346,0.0396983,88236.0,88221.0,0.02836]
[1766256302460,0.02836,88236.0,88221.0,0.02836]
[1766256304555,0.0113385,88235.0,88215.0,0.011341]
[1766256304762,0.02836,88236.0,88215.0,0.030981]
[1766256307062,0.02836,88236.0,88218.0,0.0113406]
[1766256309461,0.0396983,88236.0,88218.0,0.0113406]
[1766256311761,0.02836,88236.0,88218.0,0.0113406]
[1766256313458,0.02836,88236.0,88220.0,0.22860734]
[1766256319173,0.02836,88236.0,88220.0,0.2286063]
[1766256322771,0.02836,88236.0,88220.0,0.2569663]
[1766256323272,0.02836,88236.0,88220.0,0.02836]
[1766256323572,0.02836,88236.0,88220.0,0.2569663]
[1766256356410,0.02836,88236.0,88220.0,0.25696953]
[1766256374024,0.02836,88236.0,88220.0,0.26830983]
[1766256375428,0.02836,88236.0,88220.0,0.0397003]
[1766256386130,0.02836,88236.0,88220.0,0.02836]
[1766256386332,0.02836,88236.0,88223.0,0.01134]
[1766256386333,0.00836,88236.0,88223.0,0.01134]
[1766256386534,0.02836,88236.0,88223.0,0.01134]
[1766256391038,0.02836,88236.0,88220.0,0.02836]
[1766256394441,0.02836,88236.0,88221.0,0.0113401]
[1766256396244,0.02836,88236.0,88226.0,0.0113395]
[1766256418467,0.02836,88243.0,88229.0,0.0113391]
[1766256418678,0.0258076,88242.0,88229.0,0.0113391]
[1766256418976,0.0258076,88241.0,88229.0,0.0113391]
[1766256419171,0.02836,88243.0,88229.0,0.0113391]
[1766256419373,0.02580749,88242.0,88229.0,0.0113391]
[1766256419572,0.02580749,88241.0,88225.0,0.0113396]
[1766256419772,0.02836,88243.0,88225.0,0.0113396]
[1766256419974,0.02580748,88242.0,88225.0,0.0113396]
[1766256420171,0.02580748,88241.0,88225.0,0.0113396]
[1766256420473,0.02836,88243.0,88225.0,0.0113396]
[1766256420678,0.02580767,88242.0,88225.0,0.0113396]
[1766256420877,0.02836,88243.0,88225.0,0.0113396]
[1766256421177,0.02580767,88242.0,88225.0,0.0113396]
[1766256421376,0.02836,88243.0,88225.0,0.0113396]
[1766256421575,0.02580767,88242.0,88225.0,0.0113396]
[1766256421777,0.02836,88243.0,88225.0,0.0113396]
[1766256421976,0.02580758,88242.0,88225.0,0.0113396]
[1766256422173,0.02580817,88241.0,88225.0,0.0113396]
[1766256422373,0.02836,88243.0,88225.0,0.0113396]
[1766256422676,0.02580786,88242.0,88225.0,0.0113396]
[1766256422878,0.02836,88243.0,88225.0,0.0113396]
[1766256423078,0.02580777,88242.0,88225.0,0.0113396]
[1766256423377,0.02836,88243.0,88225.0,0.0113396]
[1766256423574,0.02580803,88242.0,88225.0,0.0113396]
[1766256423776,0.02836,88243.0,88225.0,0.0113396]
[1766256423976,0.02580802,88242.0,88225.0,0.0113396]
[1766256424175,0.02580863,88241.0,88225.0,0.0113396]
[1766256424475,0.02836,88243.0,88225.0,0.0113396]
[1766256424676,0.02580859,88242.0,88225.0,0.0113396]
[1766256424873,0.02580859,88241.0,88225.0,0.0113396]
[1766256425073,0.02836,88243.0,88225.0,0.0113396]
[1766256425274,0.02580956,88242.0,88225.0,0.0113396]
[1766256425473,0.02580956,88241.0,88225.0,0.0113396]
[1766256425678,0.02836,88243.0,88225.0,0.0113396]
[1766256425873,0.02580941,88242.0,88225.0,0.0113396]
[1766256426073,0.02580941,88241.0,88225.0,0.0113396]
[1766256426274,0.02836,88243.0,88225.0,0.0113396]
[1766256426475,0.02581043,88242.0,88225.0,0.0113396]
[1766256426674,0.02581043,88241.0,88225.0,0.0113396]
[1766256426877,0.02836,88243.0,88225.0,0.0113396]
[1766256427073,0.02581043,88242.0,88225.0,0.0113396]
[1766256427379,0.02581043,88241.0,88225.0,0.0113396]
[1766256427577,0.02836,88243.0,88225.0,0.0113396]
[1766256427779,0.02581091,88242.0,88225.0,0.0113396]
[1766256427983,0.02581091,88241.0,88225.0,0.0113396]
[1766256428279,0.02836,88243.0,88225.0,0.0113396]
[1766256428479,0.02581112,88242.0,88225.0,0.0113396]
[1766256428681,0.02581112,88241.0,88225.0,0.0113396]
[1766256428981,0.02836,88243.0,88225.0,0.0113396]
[1766256429176,0.02581116,88242.0,88225.0,0.0113396]
[1766256429378,0.02581116,88241.0,88225.0,0.0113396]
[1766256429677,0.02836,88243.0,88225.0,0.0113396]
[1766256429877,0.02581147,88242.0,88225.0,0.0113396]
[1766256430076,0.02581147,88241.0,88225.0,0.0113396]
[1766256430381,0.02836,88243.0,88225.0,0.0113396]
[1766256430578,0.02581148,88242.0,88225.0,0.0113396]
[1766256430779,0.02581148,88241.0,88225.0,0.0113396]
[1766256430979,0.02836,88243.0,88225.0,0.0113396]
[1766256431281,0.02581154,88242.0,88225.0,0.0113396]
[1766256431481,0.02581154,88241.0,88225.0,0.0113396]
[1766256431780,0.02836,88243.0,88225.0,0.0113396]
[1766256431978,0.02581149,88242.0,88225.0,0.0113396]
[1766256432181,0.02581149,88241.0,88225.0,0.0113396]
[1766256432381,0.02836,88243.0,88225.0,0.0113396]
[1766256432680,0.0113377,88241.0,88221.0,0.0113402]
[1766256432880,0.02581164,88240.0,88221.0,0.0113402]
[1766256433081,0.0113377,88241.0,88221.0,0.0113402]
[1766256433382,0.02581167,88240.0,88221.0,0.0113402]
[1766256433582,0.011338,88239.0,88220.0,0.25692283]
[1766256433782,0.011338,88239.0,88220.0,0.02836]
[1766256434982,0.011338,88239.0,88221.0,0.0113402]
[1766256436884,0.011338,88239.0,88222.0,0.02836]
[1766256437183,0.0396975,88243.0,88222.0,0.02836]
[1766256437380,0.02581206,88242.0,88222.0,0.02836]
[1766256437583,0.02581206,88241.0,88222.0,0.02836]
[1766256437881,0.02581206,88240.0,88222.0,0.02836]
[1766256438071,0.0396975,88243.0,88222.0,0.02836]
[1766256438272,0.0258122,88242.0,88222.0,0.02836]
[1766256438475,0.0258122,88241.0,88222.0,0.02836]
[1766256438675,0.0258122,88240.0,88222.0,0.02836]
[1766256438876,0.0396975,88243.0,88222.0,0.02836]
[1766256439180,0.02581221,88242.0,88222.0,0.02836]
[1766256439381,0.02581221,88241.0,88222.0,0.02836]
[1766256439582,0.02581221,88240.0,88222.0,0.02836]
[1766256439786,0.0396975,88243.0,88222.0,0.02836]
[1766256440082,0.02581241,88242.0,88223.0,0.0113399]
[1766256440281,0.02581241,88241.0,88223.0,0.0113399]
[1766256440586,0.02581241,88240.0,88223.0,0.0113399]
[1766256440886,0.0396975,88243.0,88223.0,0.0113399]
[1766256441085,0.02581256,88242.0,88223.0,0.0113399]
[1766256441285,0.02581256,88241.0,88223.0,0.0113399]
[1766256441487,0.02581256,88240.0,88223.0,0.0113399]
[1766256441689,0.0396975,88243.0,88223.0,0.0113399]
[1766256441991,0.02581274,88242.0,88223.0,0.0113399]
[1766256442181,0.02581274,88241.0,88223.0,0.0113399]
[1766256442382,0.02581274,88240.0,88223.0,0.0113399]
[1766256442585,0.0396975,88243.0,88223.0,0.0113399]
[1766256442786,0.02581284,88242.0,88223.0,0.0113399]
[1766256443086,0.02581284,88241.0,88223.0,0.0113399]
[1766256443287,0.02581284,88240.0,88223.0,0.0113399]
[1766256443491,0.02836,88243.0,88223.0,0.0113399]
[1766256443694,0.025813,88242.0,88223.0,0.0113399]
[1766256443880,0.025813,88241.0,88223.0,0.0113399]
[1766256444194,0.025813,88240.0,88223.0,0.0113399]
[1766256444380,0.02836,88243.0,88223.0,0.0113399]
[1766256444581,0.02581327,88242.0,88223.0,0.0113399]
[1766256444782,0.02581327,88241.0,88224.0,0.01228]
[1766256444982,0.02581327,88240.0,88225.0,0.0113396]
[1766256445286,0.02836,88243.0,88230.0,0.22857591]
[1766256445483,0.02581369,88242.0,88230.0,0.22857591]
[1766256445683,0.02581369,88241.0,88230.0,0.22857591]
[1766256445989,0.02581369,88240.0,88230.0,0.22857591]
[1766256446189,0.02836,88243.0,88230.0,0.22857591]
[1766256446389,0.02600319,88242.0,88230.0,0.22857591]
[1766256446590,0.02600319,88241.0,88230.0,0.22857591]
[1766256446792,0.02600319,88240.0,88230.0,0.22857591]
[1766256446992,0.02836,88243.0,88230.0,0.22857591]
[1766256447194,0.02600327,88242.0,88230.0,0.22857591]
[1766256447491,0.02600327,88241.0,88230.0,0.22857591]
[1766256447691,0.02600327,88240.0,88230.0,0.22857591]
[1766256447892,0.02836,88243.0,88230.0,0.22857591]
[1766256448094,0.02600332,88242.0,88230.0,0.22857591]
[1766256448283,0.02600332,88241.0,88230.0,0.22857591]
[1766256448486,0.02600332,88240.0,88230.0,0.22857591]
[1766256448787,0.02836,88243.0,88230.0,0.22857591]
[1766256448986,0.02600323,88242.0,88230.0,0.22857591]
[1766256449190,0.02600323,88241.0,88230.0,0.22857591]
[1766256449394,0.02836,88243.0,88230.0,0.22857591]
[1766256449693,0.02600316,88242.0,88230.0,0.22857591]
[1766256449994,0.02600316,88241.0,88230.0,0.22857591]
[1766256450185,0.02836,88243.0,88230.0,0.22857591]
[1766256450385,0.02600316,88242.0,88230.0,0.22857591]
[1766256450686,0.02600316,88241.0,88230.0,0.22857591]
[1766256450885,0.02836,88243.0,88230.0,0.22857591]
[1766256451086,0.02600297,88242.0,88230.0,0.22857591]
[1766256451292,0.02600297,88241.0,88230.0,0.22857591]
[1766256451491,0.02836,88243.0,88230.0,0.22857591]
[1766256451681,0.0260029,88242.0,88230.0,0.22857591]
[1766256451886,0.0260029,88241.0,88230.0,0.22857591]
[1766256452082,0.02836,88243.0,88230.0,0.22857591]
[1766256452386,0.02600276,88242.0,88230.0,0.22857591]
[1766256452587,0.02600276,88241.0,88230.0,0.22857591]
[1766256452793,0.02836,88243.0,88230.0,0.22857591]
[1766256452994,0.02600274,88242.0,88230.0,0.22857591]
[1766256453196,0.02600274,88241.0,88230.0,0.22857591]
[1766256453495,0.02836,88243.0,88230.0,0.22857591]
[1766256453696,0.02600267,88242.0,88230.0,0.22857591]
[1766256453906,0.02600267,88241.0,88230.0,0.22857591]
[1766256454095,0.02836,88243.0,88230.0,0.22857591]
[1766256454395,0.02600271,88242.0,88230.0,0.22857591]
[1766256454585,0.02600271,88241.0,88230.0,0.22857591]
[1766256454789,0.02836,88243.0,88230.0,0.22857591]
[1766256454988,0.02600287,88242.0,88230.0,0.25693591]
[1766256455190,0.02600287,88241.0,88230.0,0.25693591]
[1766256455393,0.02836,88243.0,88230.0,0.25693591]
[1766256455587,0.02600281,88242.0,88230.0,0.25693591]
[1766256455793,0.02600281,88241.0,88230.0,0.25693591]
[1766256455996,0.02836,88243.0,88230.0,0.25693591]
[1766256456196,0.02600281,88242.0,88230.0,0.25693591]
[1766256456398,0.02600281,88241.0,88230.0,0.25693591]
[1766256456597,0.02836,88243.0,88230.0,0.25693591]
[1766256456798,0.02600258,88242.0,88230.0,0.25693591]
[1766256456998,0.02600258,88241.0,88230.0,0.25693591]
[1766256457202,0.02836,88243.0,88230.0,0.25693591]
[1766256457399,0.02600247,88242.0,88230.0,0.25693591]
[1766256457595,0.02600247,88241.0,88230.0,0.25693591]
[1766256457796,0.02836,88243.0,88230.0,0.25693591]
[1766256458095,0.02600269,88242.0,88230.0,0.25693591]
[1766256458295,0.02600269,88241.0,88230.0,0.25693591]
[1766256458594,0.02836,88243.0,88230.0,0.25693591]
[1766256458795,0.02600248,88242.0,88230.0,0.25693591]
[1766256458996,0.02600248,88241.0,88230.0,0.25693591]
[1766256459196,0.02836,88243.0,88230.0,0.25693591]
[1766256459494,0.02600243,88242.0,88230.0,0.25693591]
[1766256459694,0.02600243,88241.0,88230.0,0.25693591]
[1766256459895,0.02836,88243.0,88230.0,0.25693591]
[1766256460104,0.02600225,88242.0,88230.0,0.25693591]
[1766256460296,0.02600225,88241.0,88230.0,0.25693591]
[1766256460499,0.02836,88243.0,88230.0,0.25693591]
[1766256460797,0.02600202,88242.0,88230.0,0.25693591]
[1766256460997,0.02600202,88241.0,88230.0,0.25693591]
[1766256461303,0.02836,88243.0,88230.0,0.25693591]
[1766256461504,0.02600186,88242.0,88230.0,0.25693591]
[1766256461700,0.02600186,88241.0,88230.0,0.25693591]
[1766256461901,0.02836,88243.0,88230.0,0.25693591]
[1766256462200,0.02600185,88242.0,88230.0,0.25693591]
[1766256462400,0.02836,88243.0,88230.0,0.25693591]
[1766256462401,0.02600185,88241.0,88230.0,0.25693591]
[1766256462705,0.02836,88243.0,88230.0,0.25693591]
[1766256462900,0.02600169,88242.0,88230.0,0.25693591]
[1766256463101,0.02600169,88241.0,88230.0,0.25693591]
[1766256463301,0.02836,88243.0,88230.0,0.25693591]
[1766256463506,0.02600155,88242.0,88230.0,0.25693591]
[1766256463804,0.02600155,88241.0,88230.0,0.25693591]
[1766256463995,0.02836,88243.0,88230.0,0.25693591]
[1766256464196,0.02600155,88242.0,88230.0,0.25693591]
[1766256464393,0.02600155,88241.0,88230.0,0.25693591]
[1766256464592,0.02836,88243.0,88230.0,0.25693591]
[1766256464809,0.0260015,88242.0,88230.0,0.25693591]
[1766256465009,0.0260015,88241.0,88230.0,0.25693591]
[1766256465206,0.02836,88243.0,88230.0,0.25693591]
[1766256465404,0.02600153,88242.0,88230.0,0.25693591]
[1766256465606,0.02600153,88241.0,88230.0,0.25693591]
[1766256465804,0.02836,88243.0,88230.0,0.25693591]
[1766256466014,0.02600169,88242.0,88230.0,0.25693591]
[1766256466310,0.02600169,88241.0,88230.0,0.25693591]
[1766256466511,0.02836,88243.0,88230.0,0.25693591]
[1766256466816,0.02600247,88242.0,88230.0,0.25693591]
[1766256467109,0.02600247,88241.0,88230.0,0.25693591]
[1766256467312,0.02836,88243.0,88230.0,0.25693591]
[1766256467611,0.02600231,88242.0,88230.0,0.25693591]
[1766256467911,0.02600231,88241.0,88230.0,0.25693591]
[1766256468096,0.02836,88243.0,88230.0,0.25693591]
[1766256468300,0.02600218,88242.0,88230.0,0.25693591]
[1766256468611,0.02600218,88241.0,88230.0,0.25691029]
[1766256468925,0.02836,88243.0,88230.0,0.25691029]
[1766256469105,0.02600225,88242.0,88230.0,0.25691029]
[1766256469304,0.02600225,88241.0,88230.0,0.25691029]
[1766256469611,0.02836,88243.0,88230.0,0.25691029]
[1766256469810,0.02600244,88242.0,88230.0,0.25691029]
[1766256470011,0.02600244,88241.0,88230.0,0.25691029]
[1766256470211,0.02836,88243.0,88230.0,0.25691029]
[1766256470409,0.02600263,88242.0,88230.0,0.25691029]
[1766256470603,0.02600263,88241.0,88230.0,0.25691029]
[1766256470804,0.02836,88243.0,88230.0,0.25691029]
[1766256471005,0.02600263,88242.0,88230.0,0.25691029]
[1766256471305,0.02600263,88241.0,88230.0,0.25691029]
[1766256471613,0.02836,88243.0,88230.0,0.25691029]
[1766256471812,0.02600302,88242.0,88230.0,0.25691029]
[1766256472014,0.02600302,88241.0,88230.0,0.25691029]
[1766256472210,0.02836,88243.0,88230.0,0.25691029]
[1766256472411,0.02600302,88242.0,88230.0,0.25691029]
[1766256472616,0.02600302,88241.0,88230.0,0.25691029]
[1766256472804,0.02836,88243.0,88230.0,0.25691029]
[1766256473004,0.02600331,88242.0,88230.0,0.25691029]
[1766256473205,0.02600331,88241.0,88230.0,0.25691029]
[1766256473505,0.02836,88243.0,88230.0,0.25691029]
[1766256473705,0.02600366,88242.0,88230.0,0.25691029]
[1766256474012,0.02600366,88241.0,88230.0,0.25691029]
[1766256474215,0.02836,88243.0,88230.0,0.25691029]
[1766256474416,0.02600399,88242.0,88230.0,0.25691029]
[1766256474616,0.02600399,88241.0,88230.0,0.25691029]
[1766256474816,0.02836,88243.0,88230.0,0.25691029]
[1766256475018,0.02600399,88242.0,88230.0,0.25691029]
[1766256475220,0.02600399,88241.0,88230.0,0.25691029]
[1766256475419,0.02836,88243.0,88230.0,0.25691029]
[1766256475619,0.02602038,88242.0,88230.0,0.25691029]
[1766256475918,0.02602038,88241.0,88230.0,0.25691029]
[1766256476116,0.02836,88243.0,88230.0,0.25691029]
[1766256476318,0.02602036,88242.0,88230.0,0.25691029]
[1766256476513,0.02602036,88241.0,88230.0,0.25691029]
[1766256476712,0.02836,88243.0,88230.0,0.25691029]
[1766256476913,0.02602089,88242.0,88230.0,0.25691029]
[1766256477113,0.02602089,88241.0,88230.0,0.25691029]
[1766256477412,0.02836,88243.0,88230.0,0.25691029]
[1766256477613,0.02602138,88242.0,88230.0,0.25691029]
[1766256477814,0.02602138,88241.0,88230.0,0.25691029]
[1766256478021,0.02836,88243.0,88230.0,0.25691029]
[1766256478222,0.02602136,88242.0,88230.0,0.25691029]
[1766256478521,0.02602136,88241.0,88230.0,0.25691029]
[1766256478712,0.02836,88243.0,88230.0,0.25691029]
[1766256478913,0.02602202,88242.0,88230.0,0.25691029]
[1766256479112,0.02602202,88241.0,88230.0,0.25691029]
[1766256479313,0.02836,88243.0,88230.0,0.25691029]
[1766256479514,0.02602213,88242.0,88230.0,0.25691029]
[1766256479717,0.02602213,88241.0,88230.0,0.25691029]
[1766256480022,0.02836,88243.0,88230.0,0.25691029]
[1766256480216,0.02602214,88242.0,88230.0,0.25691029]
[1766256480416,0.02602214,88241.0,88230.0,0.25691029]
[1766256480619,0.02836,88243.0,88230.0,0.02836]
[1766256480818,0.02602227,88242.0,88230.0,0.25691029]
[1766256481015,0.02602227,88241.0,88230.0,0.25691029]
[1766256481320,0.02602227,88241.0,88230.0,0.02836]
[1766256481520,0.0113378,88240.0,88230.0,0.02836]
[1766256481821,0.23988809,88240.0,88230.0,0.02836]
[1766256482324,0.23988809,88240.0,88221.0,0.0113401]
[1766256482521,0.23988809,88240.0,88222.0,0.02836]
[1766256483333,0.0113382,88237.0,88222.0,0.02836]
[1766256483517,0.0113382,88237.0,88223.0,0.02836]
[1766256483938,0.22855029,88240.0,88223.0,0.02836]
[1766256490343,0.011338,88239.0,88223.0,0.02836]
[1766256493445,0.011338,88239.0,88220.0,0.23989059]
[1766256493749,0.011338,88239.0,88221.0,0.02836]
[1766256499356,0.0396974,88243.0,88221.0,0.02836]
[1766256499556,0.02602288,88242.0,88221.0,0.02836]
[1766256499857,0.02602288,88241.0,88221.0,0.02836]
[1766256500056,0.02602288,88240.0,88221.0,0.02836]
[1766256500245,0.0396974,88243.0,88221.0,0.02836]
[1766256500451,0.02602287,88242.0,88222.0,0.01134]
[1766256500750,0.02602287,88241.0,88222.0,0.01134]
[1766256500950,0.02602287,88240.0,88222.0,0.01134]
[1766256501152,0.0396974,88243.0,88222.0,0.01134]
[1766256501352,0.02602281,88242.0,88222.0,0.01134]
[1766256501559,0.02602281,88241.0,88222.0,0.01134]
[1766256501754,0.02602281,88240.0,88222.0,0.01134]
[1766256501955,0.0396974,88243.0,88222.0,0.01134]
[1766256502158,0.02602286,88242.0,88222.0,0.01134]
[1766256502360,0.02602286,88241.0,88222.0,0.01134]
[1766256502658,0.02602286,88240.0,88222.0,0.01134]
[1766256502860,0.0396974,88243.0,88222.0,0.01134]
[1766256503060,0.02602291,88242.0,88222.0,0.01134]
[1766256503257,0.02602291,88241.0,88222.0,0.01134]
[1766256503455,0.02602291,88240.0,88222.0,0.01134]
[1766256503762,0.0396974,88243.0,88225.0,0.0113397]
[1766256504063,0.02602303,88242.0,88225.0,0.0113397]
[1766256504253,0.02602303,88241.0,88225.0,0.0113397]
[1766256504561,0.02602303,88240.0,88225.0,0.0113397]
[1766256504757,0.0396974,88243.0,88225.0,0.0113397]
[1766256504950,0.02602322,88242.0,88225.0,0.0113397]
[1766256505154,0.02602322,88241.0,88225.0,0.0113397]
[1766256505353,0.02602322,88240.0,88225.0,0.0113397]
[1766256505550,0.02836,88243.0,88225.0,0.0113397]
[1766256505754,0.0260994,88242.0,88225.0,0.0113397]
[1766256505962,0.0260994,88241.0,88225.0,0.0113397]
[1766256506261,0.0260594,88240.0,88225.0,0.0113397]
[1766256506453,0.02836,88243.0,88225.0,0.0113397]
[1766256511967,0.0113376,88242.0,88221.0,0.0397001]
[1766256518275,0.02610153,88241.0,88221.0,0.0397001]
[1766256518473,0.02610153,88240.0,88221.0,0.0397001]
[1766256518673,0.0113376,88242.0,88221.0,0.0397001]
[1766256518970,0.02610156,88241.0,88221.0,0.0397001]
[1766256519170,0.02610156,88240.0,88221.0,0.0397001]
[1766256519372,0.0113376,88242.0,88221.0,0.0397001]
[1766256519571,0.02610155,88241.0,88221.0,0.0397001]
[1766256519870,0.02610155,88240.0,88221.0,0.0397001]
[1766256520172,0.0113376,88242.0,88221.0,0.0397001]
[1766256520362,0.02610152,88241.0,88221.0,0.0397001]
[1766256520558,0.02610152,88240.0,88221.0,0.0397001]
[1766256520763,0.0113376,88242.0,88221.0,0.0397001]
[1766256520965,0.02610154,88241.0,88221.0,0.0397001]
[1766256521165,0.02610154,88240.0,88221.0,0.0397001]
[1766256521375,0.0113376,88242.0,88221.0,0.0397001]
[1766256521568,0.02610141,88241.0,88221.0,0.0397001]
[1766256521768,0.02610141,88240.0,88221.0,0.0397001]
[1766256521969,0.0113376,88242.0,88221.0,0.0397001]
[1766256522277,0.0113379,88239.0,88221.0,0.02836]
[1766256528279,0.0396975,88243.0,88221.0,0.02836]
[1766256528578,0.02610206,88242.0,88221.0,0.02836]
[1766256528781,0.02610206,88241.0,88221.0,0.02836]
[1766256529077,0.02610206,88240.0,88221.0,0.02836]
[1766256529279,0.0396975,88243.0,88221.0,0.02836]
[1766256529467,0.02610456,88242.0,88221.0,0.02836]
[1766256529666,0.02610456,88241.0,88221.0,0.02836]
[1766256529880,0.02610456,88240.0,88221.0,0.02836]
[1766256530179,0.0396975,88243.0,88221.0,0.02836]
[1766256530370,0.02610471,88242.0,88221.0,0.02836]
[1766256530568,0.0113379,88240.0,88221.0,0.02836]
[1766256534090,0.02610537,88239.0,88221.0,0.02836]
[1766256534277,0.0113379,88240.0,88221.0,0.02836]
[1766256534477,0.02610537,88239.0,88221.0,0.02836]
[1766256534677,0.0113379,88240.0,88221.0,0.02836]
[1766256535088,0.02610555,88239.0,88221.0,0.02836]
[1766256535286,0.0113379,88240.0,88221.0,0.02836]
[1766256535585,0.02610555,88239.0,88222.0,0.0113401]
[1766256535787,0.0113379,88240.0,88222.0,0.0113401]
[1766256536088,0.02613176,88239.0,88222.0,0.0113401]
[1766256536284,0.0113379,88240.0,88222.0,0.0113401]
[1766256536485,0.02613187,88239.0,88222.0,0.0113401]
[1766256536686,0.0113379,88240.0,88222.0,0.0113401]
[1766256536885,0.02613187,88239.0,88222.0,0.0113401]
[1766256537087,0.0113379,88240.0,88222.0,0.0113401]
[1766256537285,0.0261319,88239.0,88222.0,0.0113401]
[1766256537481,0.0113379,88240.0,88222.0,0.0113401]
[1766256537687,0.0261319,88239.0,88222.0,0.0113401]
[1766256537888,0.02836,88243.0,88222.0,0.0113401]
[1766256538088,0.02613171,88242.0,88222.0,0.0113401]
[1766256538286,0.02613171,88241.0,88222.0,0.0113401]
[1766256538487,0.02613171,88240.0,88222.0,0.0113401]
[1766256538686,0.02613171,88239.0,88225.0,0.0113397]
[1766256538887,0.02836,88243.0,88225.0,0.0113397]
[1766256539086,0.02613154,88242.0,88225.0,0.0113397]
[1766256539289,0.02613154,88241.0,88225.0,0.0113397]
[1766256539486,0.02613154,88240.0,88225.0,0.0113397]
[1766256539686,0.02613154,88239.0,88225.0,0.0113397]
[1766256539888,0.02836,88243.0,88225.0,0.0113397]
[1766256540080,0.02613122,88242.0,88225.0,0.0113397]
[1766256540286,0.02613122,88241.0,88225.0,0.0113397]
[1766256540589,0.02613122,88240.0,88225.0,0.0113397]
[1766256540797,0.02613122,88239.0,88225.0,0.0113397]
[1766256541098,0.02836,88243.0,88225.0,0.0113397]
[1766256541400,0.02613109,88242.0,88225.0,0.0113397]
[1766256541592,0.02613109,88241.0,88225.0,0.0113397]
[1766256541796,0.02613109,88240.0,88225.0,0.0113397]
[1766256542090,0.02836,88243.0,88225.0,0.0113397]
[1766256542301,0.02613068,88242.0,88225.0,0.0113397]
[1766256542598,0.02613068,88241.0,88225.0,0.0113397]
[1766256542799,0.02613068,88240.0,88225.0,0.0113397]
[1766256543099,0.02836,88243.0,88225.0,0.0113397]
[1766256543298,0.02613044,88242.0,88225.0,0.0113397]
[1766256543593,0.02613044,88241.0,88225.0,0.0113397]
[1766256543894,0.02613044,88240.0,88225.0,0.0113397]
[1766256544093,0.02836,88243.0,88225.0,0.0113397]